[Event "Early-Titled-Tuesday-Blitz-June-18-2024"]
[Site "Chess.com"]
[Date "2024.06.18"]
[Round "1"]
[White "EvgenyBurmakin"]
[Black "jguerramzllo"]
[Result "1-0"]
[WhiteElo "2383"]
[BlackElo "2665"]
[TimeControl "180+1"]
[EndTime "8:09:35 PDT"]
[Termination "EvgenyBurmakin won by checkmate"]

1. e4 {[%clk 0:02:59.8]} 1... e5 {[%clk 0:02:59.8]} 2. Nf3 {[%clk 0:02:59.4]}
2... Nc6 {[%clk 0:03:00.4]} 3. Bb5 {[%clk 0:02:59.5]} 3... a6 {[%clk 0:03:00]}
4. Ba4 {[%clk 0:02:59.8]} 4... Nf6 {[%clk 0:03:00.4]} 5. O-O {[%clk 0:02:59.9]}
5... Be7 {[%clk 0:03:00.3]} 6. Re1 {[%clk 0:03:00]} 6... b5 {[%clk 0:03:00.8]}
7. Bb3 {[%clk 0:03:00.2]} 7... d6 {[%clk 0:03:01.5]} 8. c3 {[%clk 0:02:59.8]}
8... O-O {[%clk 0:03:01.7]} 9. h3 {[%clk 0:02:58.9]} 9... Nb8 {[%clk 0:03:01]}
10. d4 {[%clk 0:02:59.1]} 10... Nbd7 {[%clk 0:03:01.2]} 11. Nbd2 {[%clk
0:02:48.9]} 11... Bb7 {[%clk 0:03:01.2]} 12. a4 {[%clk 0:02:44]} 12... h6 {[%clk
0:02:52.7]} 13. Qe2 {[%clk 0:02:26.9]} 13... c6 {[%clk 0:02:51.4]} 14. Nf1
{[%clk 0:02:17.3]} 14... Re8 {[%clk 0:02:49.3]} 15. Ng3 {[%clk 0:02:17.3]} 15...
Bf8 {[%clk 0:02:49.6]} 16. Qd3 {[%clk 0:01:58.5]} 16... Qc7 {[%clk 0:02:38.9]}
17. Be3 {[%clk 0:01:54.2]} 17... Rad8 {[%clk 0:02:38.4]} 18. Rad1 {[%clk
0:01:48]} 18... d5 {[%clk 0:02:34.8]} 19. dxe5 {[%clk 0:01:39.6]} 19... Nxe5
{[%clk 0:02:33.5]} 20. Nxe5 {[%clk 0:01:39.5]} 20... Qxe5 {[%clk 0:02:32.6]} 21.
exd5 {[%clk 0:01:33.7]} 21... Nxd5 {[%clk 0:02:30.5]} 22. Bc2 {[%clk 0:01:19.7]}
22... g6 {[%clk 0:02:22.8]} 23. Bd2 {[%clk 0:01:19.5]} 23... Qc7 {[%clk
0:01:58]} 24. Rxe8 {[%clk 0:01:18.9]} 24... Rxe8 {[%clk 0:01:57.8]} 25. h4
{[%clk 0:01:15.7]} 25... Nf4 {[%clk 0:01:40.8]} 26. Qf3 {[%clk 0:01:05.9]} 26...
Bd6 {[%clk 0:01:34.9]} 27. Ne4 {[%clk 0:01:03.6]} 27... Be5 {[%clk 0:01:35.3]}
28. Bxf4 {[%clk 0:00:58.6]} 28... Bxf4 {[%clk 0:01:35.5]} 29. Nf6+ {[%clk
0:00:58.8]} 29... Kf8 {[%clk 0:01:36.1]} 30. Nxe8 {[%clk 0:00:53.4]} 30... Kxe8
{[%clk 0:01:36.6]} 31. g3 {[%clk 0:00:48.4]} 31... Be5 {[%clk 0:01:34.4]} 32.
Re1 {[%clk 0:00:44.7]} 32... Kf8 {[%clk 0:01:34.4]} 33. Bb3 {[%clk 0:00:43.4]}
33... Bd6 {[%clk 0:01:27.2]} 34. h5 {[%clk 0:00:35.4]} 34... Kg7 {[%clk
0:00:56.9]} 35. hxg6 {[%clk 0:00:32.4]} 35... Kxg6 {[%clk 0:00:56.2]} 36. Qg4+
{[%clk 0:00:21.4]} 36... Kf6 {[%clk 0:00:55.4]} 37. Bc2 {[%clk 0:00:17.7]} 37...
Bc8 {[%clk 0:00:52.7]} 38. Qh5 {[%clk 0:00:17.5]} 38... Kg7 {[%clk 0:00:50.4]}
39. Re8 {[%clk 0:00:17.1]} 39... Qd7 {[%clk 0:00:43.4]} 40. Re3 {[%clk
0:00:14.8]} 40... Be7 {[%clk 0:00:40.7]} 41. Qf3 {[%clk 0:00:14.2]} 41... Bc5
{[%clk 0:00:35.2]} 42. Re1 {[%clk 0:00:13.3]} 42... a5 {[%clk 0:00:29.1]} 43.
Kg2 {[%clk 0:00:12.2]} 43... bxa4 {[%clk 0:00:25.9]} 44. Bxa4 {[%clk 0:00:09.5]}
44... Qh3+ {[%clk 0:00:20.6]} 45. Kg1 {[%clk 0:00:09.2]} 45... Bg4 {[%clk
0:00:20]} 46. Qg2 {[%clk 0:00:08.8]} 46... Qh5 {[%clk 0:00:16.4]} 47. Bxc6
{[%clk 0:00:08.9]} 47... Qf5 {[%clk 0:00:15.4]} 48. Be4 {[%clk 0:00:06.3]} 48...
Qf6 {[%clk 0:00:14.9]} 49. Rf1 {[%clk 0:00:05.6]} 49... Qe6 {[%clk 0:00:13.9]}
50. Bf3 {[%clk 0:00:05.6]} 50... Bh3 {[%clk 0:00:14]} 51. Qh2 {[%clk 0:00:05.7]}
51... Bxf1 {[%clk 0:00:14.1]} 52. Kxf1 {[%clk 0:00:06.6]} 52... a4 {[%clk
0:00:12.8]} 53. Qh4 {[%clk 0:00:06.2]} 53... Qa6+ {[%clk 0:00:11.7]} 54. Kg2
{[%clk 0:00:06.2]} 54... Qb6 {[%clk 0:00:10.5]} 55. Qg4+ {[%clk 0:00:06.5]}
55... Kf8 {[%clk 0:00:10.2]} 56. Qxa4 {[%clk 0:00:06.9]} 56... Bxf2 {[%clk
0:00:10]} 57. Qb4+ {[%clk 0:00:07.1]} 57... Qxb4 {[%clk 0:00:07.4]} 58. cxb4
{[%clk 0:00:08]} 58... Bd4 {[%clk 0:00:07.6]} 59. b3 {[%clk 0:00:08.1]} 59...
Ke7 {[%clk 0:00:07.5]} 60. b5 {[%clk 0:00:08.3]} 60... Kd6 {[%clk 0:00:07.2]}
61. Bh5 {[%clk 0:00:08.5]} 61... f6 {[%clk 0:00:07.3]} 62. Bf7 {[%clk
0:00:08.7]} 62... Kc5 {[%clk 0:00:07.6]} 63. Bc4 {[%clk 0:00:09.5]} 63... h5
{[%clk 0:00:05.7]} 64. Kf3 {[%clk 0:00:10.4]} 64... Be5 {[%clk 0:00:05.8]} 65.
Kg2 {[%clk 0:00:09.5]} 65... Kb6 {[%clk 0:00:04.4]} 66. Kh3 {[%clk 0:00:09.7]}
66... Kc5 {[%clk 0:00:04.8]} 67. Kh4 {[%clk 0:00:09.7]} 67... Bc7 {[%clk
0:00:04.6]} 68. Kxh5 {[%clk 0:00:08.6]} 68... Bxg3 {[%clk 0:00:04.5]} 69. Kg6
{[%clk 0:00:09.1]} 69... Be5 {[%clk 0:00:04.7]} 70. Kf5 {[%clk 0:00:09.7]} 70...
Bd4 {[%clk 0:00:04.9]} 71. Ke4 {[%clk 0:00:09.5]} 71... Bg1 {[%clk 0:00:05]} 72.
Be2 {[%clk 0:00:06.9]} 72... Kd6 {[%clk 0:00:04]} 73. Kf5 {[%clk 0:00:06.2]}
73... Ke7 {[%clk 0:00:04.4]} 74. Bf3 {[%clk 0:00:06.1]} 74... Bb6 {[%clk
0:00:04.9]} 75. Bc6 {[%clk 0:00:06.2]} 75... Bc5 {[%clk 0:00:04]} 76. Be4 {[%clk
0:00:06.6]} 76... Bb6 {[%clk 0:00:04.3]} 77. Bd3 {[%clk 0:00:06.3]} 77... Bd8
{[%clk 0:00:04.7]} 78. Be4 {[%clk 0:00:07.2]} 78... Kd6 {[%clk 0:00:05.2]} 79.
Bf3 {[%clk 0:00:07.8]} 79... Kc5 {[%clk 0:00:05.8]} 80. Be2 {[%clk 0:00:06.9]}
80... Kb4 {[%clk 0:00:05.8]} 81. Bc4 {[%clk 0:00:07.4]} 81... Kc5 {[%clk
0:00:05.7]} 82. Ke6 {[%clk 0:00:07.6]} 82... Kd4 {[%clk 0:00:05.3]} 83. Kd7
{[%clk 0:00:08]} 83... Ba5 {[%clk 0:00:04.1]} 84. Kc6 {[%clk 0:00:07.8]} 84...
f5 {[%clk 0:00:04.1]} 85. b6 {[%clk 0:00:08.3]} 85... Bxb6 {[%clk 0:00:02.2]}
86. Kxb6 {[%clk 0:00:09.2]} 86... f4 {[%clk 0:00:02.8]} 87. Ka5 {[%clk
0:00:08.6]} 87... Kc5 {[%clk 0:00:02.1]} 88. Bf1 {[%clk 0:00:08.5]} 88... f3
{[%clk 0:00:02.3]} 89. b4+ {[%clk 0:00:09.1]} 89... Kc6 {[%clk 0:00:02.6]} 90.
Ka6 {[%clk 0:00:09.8]} 90... Kc7 {[%clk 0:00:02.6]} 91. b5 {[%clk 0:00:10.5]}
91... Kb8 {[%clk 0:00:03.1]} 92. Kb6 {[%clk 0:00:10.9]} 92... Ka8 {[%clk
0:00:03.5]} 93. Kc7 {[%clk 0:00:10.8]} 93... Ka7 {[%clk 0:00:04]} 94. b6+ {[%clk
0:00:11.1]} 94... Ka8 {[%clk 0:00:04.2]} 95. b7+ {[%clk 0:00:11.8]} 95... Ka7
{[%clk 0:00:05.1]} 96. b8=Q# {[%clk 0:00:12.1]} 1-0

[Event "Early-Titled-Tuesday-Blitz-June-18-2024"]
[Site "Chess.com"]
[Date "2024.06.18"]
[Round "2"]
[White "KanalSzachowy"]
[Black "GlavkonVVS"]
[Result "0-1"]
[WhiteElo "2352"]
[BlackElo "2543"]
[TimeControl "180+1"]
[EndTime "8:12:54 PDT"]
[Termination "GlavkonVVS won by resignation"]

1. e4 {[%clk 0:03:00.9]} 1... Nf6 {[%clk 0:02:58.9]} 2. e5 {[%clk 0:03:00.4]}
2... Nd5 {[%clk 0:02:59.1]} 3. d4 {[%clk 0:03:00.8]} 3... d6 {[%clk 0:02:59.1]}
4. Bc4 {[%clk 0:03:00.4]} 4... Nb6 {[%clk 0:02:58]} 5. Bb3 {[%clk 0:03:00]} 5...
a5 {[%clk 0:02:57.6]} 6. a4 {[%clk 0:02:59.1]} 6... dxe5 {[%clk 0:02:57.1]} 7.
Qh5 {[%clk 0:02:58.5]} 7... e6 {[%clk 0:02:54.1]} 8. dxe5 {[%clk 0:02:58.4]}
8... c5 {[%clk 0:02:51.6]} 9. c3 {[%clk 0:02:53.9]} 9... Qd3 {[%clk 0:02:50.5]}
10. Ne2 {[%clk 0:02:47.8]} 10... Nc6 {[%clk 0:02:39.1]} 11. Na3 {[%clk 0:02:37]}
11... g6 {[%clk 0:02:38.2]} 12. Qh4 {[%clk 0:02:30.4]} 12... Be7 {[%clk
0:02:31]} 13. Qxh7 {[%clk 0:02:28.7]} 13... Rxh7 {[%clk 0:02:29.7]} 0-1

[Event "Early-Titled-Tuesday-Blitz-June-18-2024"]
[Site "Chess.com"]
[Date "2024.06.18"]
[Round "2"]
[White "maximnovik"]
[Black "reniite"]
[Result "1-0"]
[WhiteElo "2528"]
[BlackElo "2295"]
[TimeControl "180+1"]
[EndTime "8:13:26 PDT"]
[Termination "maximnovik won by resignation"]

1. e4 {[%clk 0:03:00.2]} 1... e5 {[%clk 0:02:58.7]} 2. Nf3 {[%clk 0:02:59.5]}
2... Nf6 {[%clk 0:02:58.3]} 3. Nxe5 {[%clk 0:02:58.5]} 3... d6 {[%clk 0:02:58]}
4. Nf3 {[%clk 0:02:58.8]} 4... Nxe4 {[%clk 0:02:58.7]} 5. d3 {[%clk 0:02:59.1]}
5... Nf6 {[%clk 0:02:58.6]} 6. d4 {[%clk 0:02:59.7]} 6... d5 {[%clk 0:02:59.2]}
7. Bd3 {[%clk 0:03:00.3]} 7... Bg4 {[%clk 0:02:59.3]} 8. h3 {[%clk 0:02:59.1]}
8... Bh5 {[%clk 0:02:59.2]} 9. O-O {[%clk 0:02:58.8]} 9... Be7 {[%clk
0:02:55.5]} 10. c4 {[%clk 0:02:53.1]} 10... Nc6 {[%clk 0:02:49.7]} 11. g4 {[%clk
0:02:39.1]} 11... Bg6 {[%clk 0:02:48.2]} 12. c5 {[%clk 0:02:29.4]} 12... Qd7
{[%clk 0:02:24.3]} 13. Bb5 {[%clk 0:02:24.9]} 13... a6 {[%clk 0:02:24]} 14. Ne5
{[%clk 0:02:24.2]} 14... Qe6 {[%clk 0:02:23.6]} 15. Bxc6+ {[%clk 0:02:22.2]}
15... bxc6 {[%clk 0:02:23.7]} 16. Re1 {[%clk 0:02:22.9]} 16... Ne4 {[%clk
0:02:20.3]} 17. f3 {[%clk 0:02:21.4]} 17... f6 {[%clk 0:02:20.1]} 18. Nd3 {[%clk
0:02:14.7]} 1-0

[Event "Early-Titled-Tuesday-Blitz-June-18-2024"]
[Site "Chess.com"]
[Date "2024.06.18"]
[Round "2"]
[White "UnTucopalaTimba"]
[Black "Attacker_2006"]
[Result "0-1"]
[WhiteElo "2094"]
[BlackElo "2462"]
[TimeControl "180+1"]
[EndTime "8:13:26 PDT"]
[Termination "Attacker_2006 won by resignation"]

1. e4 {[%clk 0:03:00]} 1... e6 {[%clk 0:02:49]} 2. d4 {[%clk 0:02:59.5]} 2... d5
{[%clk 0:02:43]} 3. Nd2 {[%clk 0:02:59.4]} 3... h6 {[%clk 0:02:40.7]} 4. c3
{[%clk 0:02:50.9]} 4... Nf6 {[%clk 0:02:26.6]} 5. e5 {[%clk 0:02:49.7]} 5... Ne4
{[%clk 0:02:22.6]} 6. Nxe4 {[%clk 0:02:44.7]} 6... dxe4 {[%clk 0:02:20.7]} 7.
Ne2 {[%clk 0:02:40.5]} 7... c5 {[%clk 0:02:20.9]} 8. Ng3 {[%clk 0:02:35]} 8...
Nc6 {[%clk 0:02:19.3]} 9. Bb5 {[%clk 0:02:27.4]} 9... cxd4 {[%clk 0:02:19.4]}
10. cxd4 {[%clk 0:02:23.4]} 10... Qa5+ {[%clk 0:02:19.2]} 11. Bd2 {[%clk
0:02:16.2]} 11... Qxb5 {[%clk 0:02:20.1]} 12. Bc3 {[%clk 0:02:13.4]} 12... Nb4
{[%clk 0:02:11]} 0-1

[Event "Early-Titled-Tuesday-Blitz-June-18-2024"]
[Site "Chess.com"]
[Date "2024.06.18"]
[Round "2"]
[White "Losingexperience"]
[Black "JG-17"]
[Result "1-0"]
[WhiteElo "2768"]
[BlackElo "2514"]
[TimeControl "180+1"]
[EndTime "8:14:15 PDT"]
[Termination "Losingexperience won by resignation"]

1. e4 {[%clk 0:03:00.9]} 1... c5 {[%clk 0:02:16.4]} 2. Nf3 {[%clk 0:03:00.2]}
2... d6 {[%clk 0:02:16.7]} 3. d4 {[%clk 0:02:59.7]} 3... cxd4 {[%clk 0:02:17.6]}
4. Qxd4 {[%clk 0:02:59.8]} 4... a6 {[%clk 0:02:17]} 5. c4 {[%clk 0:02:58.4]}
5... Nf6 {[%clk 0:02:17.3]} 6. h3 {[%clk 0:02:55.1]} 6... Nc6 {[%clk 0:02:17.8]}
7. Qe3 {[%clk 0:02:55.3]} 7... g6 {[%clk 0:02:18.5]} 8. Be2 {[%clk 0:02:55.6]}
8... Bg7 {[%clk 0:02:19.1]} 9. O-O {[%clk 0:02:55.6]} 9... O-O {[%clk
0:02:19.8]} 10. Nc3 {[%clk 0:02:56.1]} 10... b6 {[%clk 0:02:11.1]} 11. Rd1
{[%clk 0:02:51]} 11... Qc7 {[%clk 0:02:10.8]} 12. Rb1 {[%clk 0:02:49.4]} 12...
Bb7 {[%clk 0:02:08.9]} 13. b3 {[%clk 0:02:49.2]} 13... Rac8 {[%clk 0:02:03]} 14.
Bb2 {[%clk 0:02:49.1]} 14... Rfe8 {[%clk 0:01:55]} 15. Rbc1 {[%clk 0:02:49.4]}
15... Nd7 {[%clk 0:01:36.9]} 16. Nd5 {[%clk 0:02:48.3]} 16... Qd8 {[%clk
0:01:37.6]} 17. Bxg7 {[%clk 0:02:48.2]} 17... Kxg7 {[%clk 0:01:38.4]} 18. Rd2
{[%clk 0:02:40.9]} 18... Nce5 {[%clk 0:01:32.5]} 19. Nxe5 {[%clk 0:02:40.3]}
19... dxe5 {[%clk 0:01:25.3]} 20. Rcd1 {[%clk 0:02:39.3]} 20... Bxd5 {[%clk
0:01:15.2]} 21. Rxd5 {[%clk 0:02:37.5]} 21... Rc7 {[%clk 0:01:15.8]} 22. Qd2
{[%clk 0:02:35.9]} 1-0

[Event "Early-Titled-Tuesday-Blitz-June-18-2024"]
[Site "Chess.com"]
[Date "2024.06.18"]
[Round "2"]
[White "dosto07"]
[Black "carloseduar100"]
[Result "1-0"]
[WhiteElo "2608"]
[BlackElo "2257"]
[TimeControl "180+1"]
[EndTime "8:14:22 PDT"]
[Termination "dosto07 won by resignation"]

1. e4 {[%clk 0:03:00.9]} 1... e6 {[%clk 0:03:00]} 2. d4 {[%clk 0:02:59.8]} 2...
d5 {[%clk 0:02:59.4]} 3. Nd2 {[%clk 0:02:59.6]} 3... c5 {[%clk 0:02:58.6]} 4.
exd5 {[%clk 0:02:58.7]} 4... Qxd5 {[%clk 0:02:57.9]} 5. Ngf3 {[%clk 0:02:59]}
5... cxd4 {[%clk 0:02:57.4]} 6. Bc4 {[%clk 0:02:59.3]} 6... Qd7 {[%clk
0:02:57.1]} 7. O-O {[%clk 0:02:59.1]} 7... Nc6 {[%clk 0:02:57.4]} 8. Nb3 {[%clk
0:02:59.6]} 8... Nf6 {[%clk 0:02:56.9]} 9. Nbxd4 {[%clk 0:03:00]} 9... Nxd4
{[%clk 0:02:56.8]} 10. Nxd4 {[%clk 0:03:00.5]} 10... a6 {[%clk 0:02:56.7]} 11.
Bb3 {[%clk 0:02:59.2]} 11... Bd6 {[%clk 0:02:55.8]} 12. Re1 {[%clk 0:02:48.5]}
12... Qc7 {[%clk 0:02:55.4]} 13. h3 {[%clk 0:02:48.2]} 13... O-O {[%clk
0:02:53.9]} 14. Bg5 {[%clk 0:02:46.6]} 14... h6 {[%clk 0:02:53]} 15. Bxf6 {[%clk
0:02:42.8]} 15... gxf6 {[%clk 0:02:53.9]} 16. Qh5 {[%clk 0:02:41.9]} 16... Kh7
{[%clk 0:02:49.3]} 17. Rad1 {[%clk 0:02:37]} 17... Rg8 {[%clk 0:02:44.9]} 18. c3
{[%clk 0:02:35.1]} 18... Bd7 {[%clk 0:02:38.8]} 19. Qxf7+ {[%clk 0:02:21.1]}
19... Rg7 {[%clk 0:02:36.8]} 20. Qxf6 {[%clk 0:02:03.1]} 20... Rf8 {[%clk
0:02:19.6]} 21. Bc2+ {[%clk 0:01:52.7]} 21... Kg8 {[%clk 0:02:20.1]} 22. Qxh6
{[%clk 0:01:49.9]} 22... Bf4 {[%clk 0:02:14.7]} 23. Qh5 {[%clk 0:01:46.7]} 23...
e5 {[%clk 0:02:10.4]} 24. Bb3+ {[%clk 0:01:44.4]} 1-0

[Event "Early-Titled-Tuesday-Blitz-June-18-2024"]
[Site "Chess.com"]
[Date "2024.06.18"]
[Round "2"]
[White "LastGladiator1"]
[Black "DontMessWithTheFish"]
[Result "1-0"]
[WhiteElo "2973"]
[BlackElo "2645"]
[TimeControl "180+1"]
[EndTime "8:14:28 PDT"]
[Termination "LastGladiator1 won by resignation"]

1. e4 {[%clk 0:03:00.9]} 1... c6 {[%clk 0:02:56.1]} 2. d4 {[%clk 0:02:55.4]}
2... d5 {[%clk 0:02:57]} 3. exd5 {[%clk 0:02:55.4]} 3... cxd5 {[%clk 0:02:56]}
4. Bd3 {[%clk 0:02:56]} 4... Nc6 {[%clk 0:02:55.9]} 5. c3 {[%clk 0:02:56.4]}
5... Qc7 {[%clk 0:02:56.2]} 6. h3 {[%clk 0:02:53.7]} 6... g6 {[%clk 0:02:55.8]}
7. Ne2 {[%clk 0:02:53.4]} 7... Bf5 {[%clk 0:02:56.2]} 8. O-O {[%clk 0:02:45.4]}
8... Nf6 {[%clk 0:02:53.8]} 9. Bf4 {[%clk 0:02:43.6]} 9... Qd7 {[%clk
0:02:51.8]} 10. Bxf5 {[%clk 0:02:43.2]} 10... gxf5 {[%clk 0:02:44.4]} 11. Nd2
{[%clk 0:02:42.3]} 11... e6 {[%clk 0:02:40.1]} 12. Nf3 {[%clk 0:02:42.3]} 12...
Bd6 {[%clk 0:02:40.4]} 13. Ne5 {[%clk 0:02:40.8]} 13... Qc7 {[%clk 0:02:37.1]}
14. Re1 {[%clk 0:02:32.3]} 14... O-O-O {[%clk 0:02:24.4]} 15. Bg5 {[%clk
0:02:31.8]} 15... Qe7 {[%clk 0:01:25.4]} 16. Ng3 {[%clk 0:02:20.9]} 16... Rdg8
{[%clk 0:01:18.2]} 17. Nxc6 {[%clk 0:02:16.3]} 17... bxc6 {[%clk 0:01:17.4]} 18.
Nxf5 {[%clk 0:02:16.2]} 1-0

[Event "Early-Titled-Tuesday-Blitz-June-18-2024"]
[Site "Chess.com"]
[Date "2024.06.18"]
[Round "2"]
[White "GP9isback23"]
[Black "MagnusCarlsen"]
[Result "0-1"]
[WhiteElo "2685"]
[BlackElo "3186"]
[TimeControl "180+1"]
[EndTime "8:14:52 PDT"]
[Termination "MagnusCarlsen won by resignation"]

1. d4 {[%clk 0:03:00.9]} 1... Nf6 {[%clk 0:02:59.3]} 2. Nf3 {[%clk 0:03:01]}
2... e6 {[%clk 0:02:58.6]} 3. e3 {[%clk 0:02:57.8]} 3... c5 {[%clk 0:02:55.5]}
4. Be2 {[%clk 0:02:58.7]} 4... b6 {[%clk 0:02:54.3]} 5. O-O {[%clk 0:02:59]}
5... Bb7 {[%clk 0:02:54.5]} 6. b3 {[%clk 0:02:59.7]} 6... g6 {[%clk 0:02:51.5]}
7. Bb2 {[%clk 0:03:00.1]} 7... Bg7 {[%clk 0:02:51.2]} 8. c4 {[%clk 0:03:00.8]}
8... O-O {[%clk 0:02:50.9]} 9. Nc3 {[%clk 0:03:01.4]} 9... d6 {[%clk 0:02:50.9]}
10. Rc1 {[%clk 0:03:01.1]} 10... Nbd7 {[%clk 0:02:50.7]} 11. Qc2 {[%clk
0:03:01.2]} 11... a6 {[%clk 0:02:48.7]} 12. Rfd1 {[%clk 0:03:01.7]} 12... Qe7
{[%clk 0:02:48.3]} 13. a3 {[%clk 0:02:45.2]} 13... Rac8 {[%clk 0:02:46.7]} 14.
b4 {[%clk 0:02:45.4]} 14... Rfd8 {[%clk 0:02:46.1]} 15. Qb3 {[%clk 0:02:45.7]}
15... cxd4 {[%clk 0:02:44.9]} 16. Nxd4 {[%clk 0:02:43.9]} 16... Ne5 {[%clk
0:02:43.2]} 17. Nb1 {[%clk 0:02:43.2]} 17... Ne4 {[%clk 0:02:41.9]} 18. f3
{[%clk 0:02:18.5]} 18... d5 {[%clk 0:02:32.1]} 19. fxe4 {[%clk 0:02:15.4]} 19...
dxc4 {[%clk 0:02:31.8]} 20. Qc2 {[%clk 0:02:09.2]} 20... Qg5 {[%clk 0:02:31]}
21. Qd2 {[%clk 0:01:54.9]} 21... Bxe4 {[%clk 0:02:29.7]} 22. Bf1 {[%clk
0:01:53.7]} 22... Rxd4 {[%clk 0:02:28.8]} 23. exd4 {[%clk 0:01:44.6]} 23... Nf3+
{[%clk 0:02:28.4]} 24. Kh1 {[%clk 0:01:45.3]} 24... Nxd2 {[%clk 0:02:29]} 25.
Nxd2 {[%clk 0:01:43.8]} 25... Bd5 {[%clk 0:02:23]} 26. Nxc4 {[%clk 0:01:40]}
26... Bxc4 {[%clk 0:02:15.6]} 27. Bxc4 {[%clk 0:01:35.4]} 27... b5 {[%clk
0:02:14.8]} 28. Bf1 {[%clk 0:01:35.2]} 28... Rxc1 {[%clk 0:02:14.3]} 29. Rxc1
{[%clk 0:01:34.8]} 29... Qd2 {[%clk 0:02:13.9]} 30. Rc8+ {[%clk 0:01:35]} 30...
Bf8 {[%clk 0:02:13.6]} 31. Bc1 {[%clk 0:01:35.7]} 31... Qf2 {[%clk 0:02:09.7]}
0-1

[Event "Early-Titled-Tuesday-Blitz-June-18-2024"]
[Site "Chess.com"]
[Date "2024.06.18"]
[Round "2"]
[White "LileKoridze"]
[Black "Rutricks"]
[Result "0-1"]
[WhiteElo "2436"]
[BlackElo "2757"]
[TimeControl "180+1"]
[EndTime "8:15:14 PDT"]
[Termination "Rutricks won by resignation"]

1. d4 {[%clk 0:03:00.9]} 1... g6 {[%clk 0:02:56.4]} 2. c4 {[%clk 0:03:00.9]}
2... Bg7 {[%clk 0:02:57.1]} 3. Nc3 {[%clk 0:03:00.6]} 3... d6 {[%clk 0:02:57.9]}
4. e4 {[%clk 0:03:00.6]} 4... Nd7 {[%clk 0:02:58.7]} 5. Nf3 {[%clk 0:03:01]}
5... e5 {[%clk 0:02:59.4]} 6. d5 {[%clk 0:03:00.7]} 6... a5 {[%clk 0:03:00.1]}
7. Be2 {[%clk 0:03:00.6]} 7... Nc5 {[%clk 0:03:00.2]} 8. O-O {[%clk 0:03:00.3]}
8... Bd7 {[%clk 0:03:00.8]} 9. Bg5 {[%clk 0:02:57.8]} 9... f6 {[%clk 0:03:00.8]}
10. Be3 {[%clk 0:02:58.2]} 10... Bh6 {[%clk 0:03:00.8]} 11. Bxc5 {[%clk
0:02:50.7]} 11... dxc5 {[%clk 0:03:00.9]} 12. a3 {[%clk 0:02:48.6]} 12... Qe7
{[%clk 0:02:54.7]} 13. Qd3 {[%clk 0:02:25]} 13... Bg7 {[%clk 0:02:53.2]} 14.
Rfd1 {[%clk 0:02:21.8]} 14... Bf8 {[%clk 0:02:52.5]} 15. Rab1 {[%clk 0:01:58.9]}
15... Nh6 {[%clk 0:02:52.4]} 16. b4 {[%clk 0:01:57.1]} 16... axb4 {[%clk
0:02:49.8]} 17. axb4 {[%clk 0:01:57.4]} 17... cxb4 {[%clk 0:02:50.7]} 18. Nb5
{[%clk 0:01:57.7]} 18... Qc5 {[%clk 0:02:31.2]} 19. d6 {[%clk 0:01:46.4]} 19...
Bxd6 {[%clk 0:02:04]} 20. Nxd6+ {[%clk 0:01:45]} 20... cxd6 {[%clk 0:02:04.9]}
21. Qxd6 {[%clk 0:01:44.9]} 21... Qxd6 {[%clk 0:02:05.8]} 22. Rxd6 {[%clk
0:01:45.4]} 22... Ke7 {[%clk 0:02:06.7]} 23. Rb6 {[%clk 0:01:44.7]} 23... Bc6
{[%clk 0:02:07]} 24. Bd3 {[%clk 0:01:38.5]} 24... Rhd8 {[%clk 0:02:03.7]} 25.
Bc2 {[%clk 0:01:38.6]} 25... Ra2 {[%clk 0:02:03.3]} 26. Bd1 {[%clk 0:01:37]}
26... Bxe4 {[%clk 0:02:01.7]} 27. Rc1 {[%clk 0:01:37.3]} 27... Ng4 {[%clk
0:01:55.1]} 28. Rxb4 {[%clk 0:01:26]} 28... Nxf2 {[%clk 0:01:55.3]} 29. Bb3
{[%clk 0:01:22.7]} 29... Rb2 {[%clk 0:01:53.1]} 30. Ne1 {[%clk 0:01:17.9]} 30...
Rdd2 {[%clk 0:01:50.7]} 0-1

[Event "Early-Titled-Tuesday-Blitz-June-18-2024"]
[Site "Chess.com"]
[Date "2024.06.18"]
[Round "2"]
[White "annazero"]
[Black "Stouuf"]
[Result "1-0"]
[WhiteElo "2531"]
[BlackElo "2753"]
[TimeControl "180+1"]
[EndTime "8:15:18 PDT"]
[Termination "annazero won by checkmate"]

1. g3 {[%clk 0:03:00.9]} 1... g6 {[%clk 0:02:55.8]} 2. Bg2 {[%clk 0:03:01.6]}
2... Bg7 {[%clk 0:02:56.4]} 3. Nf3 {[%clk 0:03:01]} 3... Nf6 {[%clk 0:02:57]} 4.
d4 {[%clk 0:03:01.1]} 4... O-O {[%clk 0:02:57.3]} 5. O-O {[%clk 0:03:01.1]} 5...
d6 {[%clk 0:02:57.7]} 6. c4 {[%clk 0:03:01.3]} 6... c6 {[%clk 0:02:57.9]} 7. Nc3
{[%clk 0:03:01]} 7... Nbd7 {[%clk 0:02:58.2]} 8. e4 {[%clk 0:03:00.7]} 8... e5
{[%clk 0:02:58.6]} 9. h3 {[%clk 0:02:59.9]} 9... exd4 {[%clk 0:02:57.8]} 10.
Nxd4 {[%clk 0:02:59.7]} 10... Qb6 {[%clk 0:02:58.3]} 11. b3 {[%clk 0:02:56.4]}
11... Nxe4 {[%clk 0:02:57.5]} 12. Nxe4 {[%clk 0:02:48.2]} 12... Qxd4 {[%clk
0:02:56.4]} 13. Qxd4 {[%clk 0:02:37.7]} 13... Bxd4 {[%clk 0:02:57.3]} 14. Bh6
{[%clk 0:02:37.2]} 14... Bxa1 {[%clk 0:02:51.6]} 15. Bxf8 {[%clk 0:02:37.4]}
15... Kxf8 {[%clk 0:02:47.2]} 16. Rxa1 {[%clk 0:02:38]} 16... Nc5 {[%clk
0:02:46.9]} 17. Nxd6 {[%clk 0:02:37.1]} 17... a5 {[%clk 0:02:47.3]} 18. Re1
{[%clk 0:02:32.5]} 18... Be6 {[%clk 0:02:46.7]} 19. Re5 {[%clk 0:02:32.9]} 19...
Nd7 {[%clk 0:02:36.7]} 20. Re1 {[%clk 0:02:29.9]} 20... Nc5 {[%clk 0:02:35.1]}
21. Re5 {[%clk 0:02:28.9]} 21... Nd7 {[%clk 0:02:35.4]} 22. Re1 {[%clk
0:02:29.3]} 22... Ra7 {[%clk 0:02:36.2]} 23. Nc8 {[%clk 0:02:29]} 23... Ra6
{[%clk 0:02:35.6]} 24. Nd6 {[%clk 0:02:29.7]} 24... Rb6 {[%clk 0:02:08.2]} 25.
f4 {[%clk 0:02:16.1]} 25... a4 {[%clk 0:02:05.2]} 26. Re3 {[%clk 0:02:12.8]}
26... Rb4 {[%clk 0:01:50.1]} 27. Ne4 {[%clk 0:02:01.1]} 27... Bf5 {[%clk
0:01:45.2]} 28. Nd2 {[%clk 0:01:59.1]} 28... a3 {[%clk 0:01:39.7]} 29. g4 {[%clk
0:01:57.7]} 29... Bb1 {[%clk 0:01:39.1]} 30. Nxb1 {[%clk 0:01:56.9]} 30... Nc5
{[%clk 0:01:39]} 31. Nxa3 {[%clk 0:01:56.6]} 31... Ne6 {[%clk 0:01:32]} 32. Nc2
{[%clk 0:01:56]} 32... Rb6 {[%clk 0:01:31.8]} 33. f5 {[%clk 0:01:56.6]} 33...
Nc5 {[%clk 0:01:29.3]} 34. Re5 {[%clk 0:01:56]} 34... Nd7 {[%clk 0:01:28.5]} 35.
Ra5 {[%clk 0:01:56.4]} 35... Nf6 {[%clk 0:01:28.7]} 36. g5 {[%clk 0:01:54.6]}
36... Nh5 {[%clk 0:01:28.5]} 37. f6 {[%clk 0:01:55]} 37... Nf4 {[%clk
0:01:28.7]} 38. Ra8# {[%clk 0:01:54.7]} 1-0